[Event "7th Cesme Open-A 2019"]
[Site "Cesme"]
[Date "2019.06.28"]
[Round "7"]
[White "Lavrov, Maxim"]
[Black "Sevgi, Volkan"]
[Result "1/2-1/2"]
[ECO "B12"]
[WhiteElo "2401"]
[BlackElo "2302"]
[Annotator "NA"]
[PlyCount "107"]
[EventDate "2019.06.24"]
[EventType "swiss"]
[EventCountry "TUR"]
[SourceTitle "playchess.com"]
[Source "ChessBase"]
[SourceQuality "1"]
[TimeControl "5400+30"]

1. e4 {[%emt 0:00:30]} c6 {[%emt 0:02:30]} 2. d4 {[%emt 0:00:30]} d5 {[%emt 0:00:00]} 3. e5 {[%emt 0:00:00]} Bf5 {[%emt 0:00:00]} 4. Nf3 {[%emt 0:00:00]} e6 {[%emt 0:00:00]} 5. Be2 {[%emt 0:00:00]} Bb4+ {[%emt 0:00:00]} 6. Nbd2 {[%emt 0:02:00]} Nd7 {[%emt 0:01:30]} 7. O-O {[%emt 0:00:30]} Ba5 {[%emt 0:04:30]} 8. c4 {[%emt 0:05:30]} Ne7 {[%emt 0:02:30]} 9. Nh4 {[%emt 0:04:30]} Bxd2 {[%emt 0:06:30]} 10. Bxd2 {[%emt 0:00:30]} dxc4 {[%emt 0:00:30]} 11. Bg5 {[%emt 0:02:30]} Be4 {[%emt 0:04:30]} 12. Bxc4 {[%emt 0:02:30]} Nb6 {[%emt 0:10:30]} 13. Bb3 $11 {[%emt 0:03:30]} h6 {[%emt 0:02:30]} 14. Be3 {[%emt 0:05:30]} g5 {[%emt 0:10:30]} 15. Nf3 {[%emt 0:00:30]} Nf5 {[%emt 0:01:30]} 16. Re1 {[%emt 0:02:30]} Qd7 {[%emt 0:17:30]} 17. Nd2 {[%emt 0:05:30]} Bd5 {[%emt 0:01:30]} 18. a4 {[%emt 0:04:30]} a5 {[%emt 0:02:30]} 19. Qc2 {[%emt 0:03:30]} Qe7 {[%emt 0:01:30]} 20. Qc3 {[%emt 0:10:30]} Rg8 {[%emt 0:07:30]} 21. Bc2 {[%emt 0:01:30]} Qb4 {[%emt 0:00:30]} 22. Qxb4 {[%emt 0:01:30]} axb4 {[%emt 0:00:30]} 23. a5 {[%emt 0:00:30]} Nc4 {[%emt 0:00:30]} 24. Nxc4 {[%emt 0:06:30]} Bxc4 {[%emt 0:02:30]} 25. Rec1 {[%emt 0:06:30]} Bb5 {[%emt 0:05:12]} 26. Ba4 {[%emt 0:01:30]} Ba6 {[%emt 0:01:22]} 27. Bc2 {[%emt 0:00:30]} Bb5 {[%emt 0:00:51]} 28. Bxf5 {[%emt 0:06:30]} exf5 {[%emt 0:00:30]} 29. d5 {[%emt 0:00:00]} Rg6 {[%emt 0:01:21]} 30. Bc5 {[%emt 0:00:00]} b3 {[%emt 0:04:03]} 31. Rc3 {[%emt 0:01:30]} cxd5 {[%emt 0:01:06]} 32. Rxb3 {[%emt 0:00:30]} Ba6 {[%emt 0:00:27]} 33. Bd6 {[%emt 0:05:12]} Rc8 {[%emt 0:00:01]} 34. Rb6 {[%emt 0:00:34]} d4 {[%emt 0:01:01]} 35. f3 {[%emt 0:00:33]} d3 {[%emt 0:00:34]} 36. Rd1 {[%emt 0:01:00]} f4 {[%emt 0:01:39]} 37. Rd2 {[%emt 0:02:11]} Rc2 {[%emt 0:02:43]} 38. Bb4 {[%emt 0:00:10]} Rxb6 {[%emt 0:00:31]} 39. axb6 {[%emt 0:00:06]} Kd7 {[%emt 0:01:24]} 40. Kf2 {[%emt 0:00:46]} Ke6 {[%emt 0:00:55]} 41. Ke1 {[%emt 0:01:37]} Kxe5 {[%emt 0:00:17]} 42. Bc3+ {[%emt 0:00:19]} Kf5 {[%emt 0:01:01]} 43. Kd1 {[%emt 0:00:02]} h5 {[%emt 0:00:05]} 44. Ke1 {[%emt 0:01:36]} Rc1+ {[%emt 0:02:20]} 45. Rd1 {[%emt 0:00:35]} Rc2 {[%emt 0:01:07]} 46. Rd2 {[%emt 0:00:05]} g4 {[%emt 0:00:06]} 47. Rxc2 {[%emt 0:00:38]} dxc2 {[%emt 0:00:30]} 48. Bd2 {[%emt 0:00:00]} g3 {[%emt 0:00:23]} 49. h4 {[%emt 0:00:52]} Bb5 {[%emt 0:01:17]} 50. Bc1 {[%emt 0:00:07]} Ke5 {[%emt 0:00:30]} 51. Bd2 {[%emt 0:00:00]} Bc4 {[%emt 0:01:35]} 52. Bc1 {[%emt 0:00:13]} f6 {[%emt 0:00:30]} 53. Bd2 {[%emt 0:00:30]} Bb5 {[%emt 0:00:30]} 54. Bc1 {[%emt 0:00:00]} 1/2-1/2

[Event "7th Cesme Open-A 2019"]
[Site "Cesme"]
[Date "2019.06.28"]
[Round "7"]
[White "Bashirli, Nail"]
[Black "Aydincelebi, Kagan"]
[Result "1-0"]
[ECO "B61"]
[WhiteElo "2367"]
[BlackElo "2258"]
[Annotator "NA"]
[PlyCount "129"]
[EventDate "2019.06.24"]
[EventType "swiss"]
[EventCountry "TUR"]
[SourceTitle "playchess.com"]
[Source "ChessBase"]
[SourceQuality "1"]
[TimeControl "5400+30"]

1. e4 {[%emt 0:14:30]} c5 {[%emt 0:00:30]} 2. Nf3 {[%emt 0:00:30]} Nc6 {[%emt 0:00:30]} 3. Nc3 {[%emt 0:00:30]} d6 {[%emt 0:00:00]} 4. d4 {[%emt 0:00:00]} cxd4 {[%emt 0:00:00]} 5. Nxd4 {[%emt 0:00:00]} Nf6 {[%emt 0:00:00]} 6. Bg5 {[%emt 0:00:00]} Bd7 {[%emt 0:00:00]} 7. Qd2 {[%emt 0:00:00]} Rc8 {[%emt 0:00:00]} 8. O-O-O {[%emt 0:01:30]} Nxd4 {[%emt 0:00:00]} 9. Qxd4 {[%emt 0:00:30]} Qa5 {[%emt 0:00:00]} 10. f4 {[%emt 0:00:00]} h6 {[%emt 0:00:00]} 11. Bh4 {[%emt 0:00:00]} g5 {[%emt 0:22:30]} 12. e5 {[%emt 0:02:30]} Bg7 $14 {[%emt 0:03:30]} 13. exf6 {[%emt 0:14:30]} Bxf6 {[%emt 0:00:30]} 14. Qd5 {[%emt 0:10:30]} Bxc3 {[%emt 0:18:30]} 15. Qxa5 {[%emt 0:00:30]} Bxa5 {[%emt 0:00:30]} 16. fxg5 {[%emt 0:00:00]} hxg5 {[%emt 0:00:30]} 17. Bxg5 {[%emt 0:01:00]} Bg4 {[%emt 0:13:30]} 18. Rd4 {[%emt 0:07:30]} Bf5 {[%emt 0:02:30]} 19. c3 {[%emt 0:01:30]} Bb6 {[%emt 0:00:30]} 20. Rb4 {[%emt 0:08:30]} f6 {[%emt 0:00:30]} 21. Bd2 {[%emt 0:00:30]} d5 {[%emt 0:02:30]} 22. h4 {[%emt 0:03:30]} Be4 {[%emt 0:03:30]} 23. h5 {[%emt 0:03:30]} Kf7 {[%emt 0:02:30]} 24. Rh4 {[%emt 0:00:30]} Rcg8 {[%emt 0:00:30]} 25. Rbxe4 {[%emt 0:01:30]} dxe4 {[%emt 0:00:00]} 26. Bc4+ {[%emt 0:02:30]} e6 {[%emt 0:00:00]} 27. Rxe4 {[%emt 0:00:00]} Re8 {[%emt 0:05:30]} 28. g4 {[%emt 0:00:00]} Bc5 {[%emt 0:01:30]} 29. Kc2 {[%emt 0:02:30]} Re7 {[%emt 0:02:30]} 30. Bf4 {[%emt 0:03:30]} a6 {[%emt 0:01:30]} 31. b4 {[%emt 0:02:30]} Ba7 {[%emt 0:00:30]} 32. a4 {[%emt 0:01:30]} Bb8 {[%emt 0:00:30]} 33. Be3 {[%emt 0:00:30]} Bd6 {[%emt 0:01:30]} 34. a5 {[%emt 0:01:56]} Kg7 {[%emt 0:00:34]} 35. Bd3 {[%emt 0:02:13]} Rc8 {[%emt 0:01:24]} 36. Kb3 {[%emt 0:00:23]} Rec7 {[%emt 0:01:42]} 37. c4 {[%emt 0:05:11]} e5 {[%emt 0:02:05]} 38. c5 {[%emt 0:00:18]} Be7 {[%emt 0:00:33]} 39. g5 {[%emt 0:03:22]} fxg5 {[%emt 0:00:52]} 40. Rxe5 {[%emt 0:00:03]} Bf6 {[%emt 0:00:59]} 41. Rf5 {[%emt 0:01:38]} Rd8 {[%emt 0:03:02]} 42. h6+ {[%emt 0:02:09]} Kf7 {[%emt 0:00:30]} 43. Kc2 {[%emt 0:00:00]} g4 {[%emt 0:02:34]} 44. h7 {[%emt 0:00:08]} Kg7 {[%emt 0:03:47]} 45. Rf4 {[%emt 0:03:56]} Re7 {[%emt 0:01:46]} 46. Rxg4+ {[%emt 0:01:06]} Kh8 {[%emt 0:00:05]} 47. Bc1 {[%emt 0:01:06]} Red7 {[%emt 0:00:58]} 48. Be4 {[%emt 0:00:54]} Rd4 {[%emt 0:00:20]} 49. Kb3 {[%emt 0:00:04]} Re8 {[%emt 0:00:38]} 50. Rg8+ {[%emt 0:01:02]} Rxg8 {[%emt 0:00:30]} 51. hxg8=Q+ {[%emt 0:00:00]} Kxg8 {[%emt 0:00:05]} 52. Bxb7 {[%emt 0:00:00]} Rd1 {[%emt 0:01:11]} 53. Kc2 {[%emt 0:00:17]} Rd4 {[%emt 0:00:40]} 54. Bd2 {[%emt 0:00:01]} Rc4+ {[%emt 0:00:00]} 55. Kb3 {[%emt 0:00:46]} Rd4 {[%emt 0:00:27]} 56. Kc2 {[%emt 0:00:30]} Rc4+ {[%emt 0:00:30]} 57. Kd3 {[%emt 0:00:30]} Rd4+ {[%emt 0:00:30]} 58. Ke2 {[%emt 0:00:30]} Kf7 {[%emt 0:00:30]} 59. Bxa6 {[%emt 0:00:30]} Ke7 {[%emt 0:00:00]} 60. Bd3 {[%emt 0:00:00]} Kd7 {[%emt 0:00:00]} 61. a6 {[%emt 0:00:00]} Kc7 {[%emt 0:00:00]} 62. b5 {[%emt 0:00:00]} Be7 {[%emt 0:00:33]} 63. b6+ {[%emt 0:00:21]} Kc6 {[%emt 0:00:00]} 64. a7 {[%emt 0:00:44]} Ra4 {[%emt 0:00:00]} 65. Be3 {[%emt 0:00:16]} 1-0

[Event "7th Cesme Open-A 2019"]
[Site "Cesme"]
[Date "2019.06.28"]
[Round "7"]
[White "Koksal, Ege"]
[Black "Kara, Yanki"]
[Result "1-0"]
[ECO "D68"]
[WhiteElo "2363"]
[BlackElo "2186"]
[Annotator "NA"]
[PlyCount "163"]
[EventDate "2019.06.24"]
[EventType "swiss"]
[EventCountry "TUR"]
[SourceTitle "playchess.com"]
[Source "ChessBase"]
[SourceQuality "1"]
[TimeControl "5400+30"]

1. d4 {[%emt 0:10:30]} Nf6 {[%emt 0:00:30]} 2. c4 {[%emt 0:00:30]} e6 {[%emt 0:00:30]} 3. Nf3 {[%emt 0:00:00]} d5 {[%emt 0:00:00]} 4. Nc3 {[%emt 0:00:00]} Be7 {[%emt 0:00:00]} 5. Bg5 {[%emt 0:00:00]} Nbd7 {[%emt 0:01:30]} 6. e3 {[%emt 0:00:00]} O-O {[%emt 0:00:30]} 7. Rc1 {[%emt 0:00:00]} c6 {[%emt 0:01:30]} 8. Bd3 {[%emt 0:02:00]} dxc4 {[%emt 0:01:30]} 9. Bxc4 {[%emt 0:00:00]} Nd5 {[%emt 0:00:00]} 10. Bxe7 {[%emt 0:00:00]} Qxe7 {[%emt 0:00:00]} 11. O-O {[%emt 0:00:30]} Nxc3 {[%emt 0:01:30]} 12. Rxc3 {[%emt 0:02:30]} e5 {[%emt 0:00:30]} 13. d5 {[%emt 0:06:30]} cxd5 $14 {[%emt 0:16:30]} 14. Qxd5 {[%emt 0:00:30]} Re8 {[%emt 0:00:30]} 15. Rd1 {[%emt 0:26:30]} Nf6 {[%emt 0:02:30]} 16. Qa5 {[%emt 0:02:30]} Bg4 {[%emt 0:08:30]} 17. Be2 {[%emt 0:01:30]} b6 {[%emt 0:00:30]} 18. Qa4 {[%emt 0:02:30]} Rac8 {[%emt 0:00:30]} 19. Rdc1 {[%emt 0:04:30]} Rxc3 {[%emt 0:04:30]} 20. Rxc3 {[%emt 0:00:30]} Rc8 {[%emt 0:02:30]} 21. Rxc8+ {[%emt 0:02:30]} Bxc8 {[%emt 0:00:30]} 22. h3 {[%emt 0:00:30]} Qc7 {[%emt 0:06:30]} 23. Qc4 {[%emt 0:03:30]} Qb8 {[%emt 0:06:30]} 24. Ng5 {[%emt 0:02:30]} Be6 {[%emt 0:03:30]} 25. Nxe6 {[%emt 0:00:30]} fxe6 {[%emt 0:00:30]} 26. Qxe6+ {[%emt 0:00:30]} Kf8 {[%emt 0:00:00]} 27. Bc4 {[%emt 0:05:30]} Qc7 {[%emt 0:00:00]} 28. g4 {[%emt 0:00:30]} h6 {[%emt 0:00:30]} 29. b3 {[%emt 0:00:30]} e4 {[%emt 0:00:30]} 30. Kg2 {[%emt 0:11:56]} Qd7 {[%emt 0:05:30]} 31. Qe5 {[%emt 0:00:38]} Qd8 {[%emt 0:05:30]} 32. Qf5 {[%emt 0:02:07]} Qd7 {[%emt 0:00:30]} 33. Qe5 {[%emt 0:02:48]} Qd8 {[%emt 0:00:30]} 34. a4 {[%emt 0:02:38]} g5 {[%emt 0:02:30]} 35. Qf5 {[%emt 0:02:02]} Kg7 {[%emt 0:01:30]} 36. h4 {[%emt 0:00:20]} gxh4 {[%emt 0:06:30]} 37. g5 {[%emt 0:00:01]} h3+ {[%emt 0:00:00]} 38. Kxh3 {[%emt 0:01:12]} hxg5 {[%emt 0:00:00]} 39. Qxg5+ {[%emt 0:00:02]} Kf8 {[%emt 0:00:30]} 40. Kg2 {[%emt 0:01:58]} a5 {[%emt 0:00:30]} 41. Qf5 {[%emt 0:00:37]} Qd6 {[%emt 0:00:30]} 42. Qg6 {[%emt 0:01:08]} Qe7 {[%emt 0:00:30]} 43. Kh3 {[%emt 0:02:35]} Qd7+ {[%emt 0:01:30]} 44. Kh2 {[%emt 0:01:02]} Qd6+ {[%emt 0:00:30]} 45. Kg2 {[%emt 0:00:50]} Ke7 {[%emt 0:00:30]} 46. Qg7+ {[%emt 0:00:17]} Kd8 {[%emt 0:00:00]} 47. Qg3 {[%emt 0:00:21]} Ke7 {[%emt 0:00:00]} 48. Bb5 {[%emt 0:01:05]} Nh5 {[%emt 0:01:30]} 49. Qg4 {[%emt 0:00:58]} Nf6 {[%emt 0:00:30]} 50. Qf5 {[%emt 0:00:02]} Qe6 {[%emt 0:00:30]} 51. Qf4 {[%emt 0:00:49]} Qd6 {[%emt 0:00:00]} 52. Qg5 {[%emt 0:00:14]} Kd8 {[%emt 0:05:18]} 53. Qg7 {[%emt 0:00:28]} Qe6 {[%emt 0:00:49]} 54. Bc4 {[%emt 0:00:24]} Qf5 {[%emt 0:00:37]} 55. Be2 {[%emt 0:01:04]} Qe5 {[%emt 0:01:12]} 56. Qg3 {[%emt 0:00:36]} Qc5 {[%emt 0:01:06]} 57. Bc4 {[%emt 0:00:43]} Qf5 {[%emt 0:01:52]} 58. Qb8+ {[%emt 0:00:14]} Kd7 {[%emt 0:00:13]} 59. Qb7+ {[%emt 0:01:06]} Ke8 {[%emt 0:00:21]} 60. Qf7+ {[%emt 0:00:36]} Kd8 {[%emt 0:00:30]} 61. Qf8+ {[%emt 0:00:21]} Kd7 {[%emt 0:00:53]} 62. Bb5+ {[%emt 0:00:30]} Kc7 {[%emt 0:00:30]} 63. Qe7+ {[%emt 0:00:30]} Kb8 {[%emt 0:00:41]} 64. Qd6+ {[%emt 0:00:00]} Kb7 {[%emt 0:00:22]} 65. Qc6+ {[%emt 0:01:06]} Kb8 {[%emt 0:00:30]} 66. Qxb6+ {[%emt 0:00:30]} Kc8 {[%emt 0:00:00]} 67. Qa6+ {[%emt 0:00:12]} Kb8 {[%emt 0:00:08]} 68. Qd6+ {[%emt 0:00:00]} Kb7 {[%emt 0:00:00]} 69. Qe7+ {[%emt 0:01:58]} Kb6 {[%emt 0:00:16]} 70. Qd8+ {[%emt 0:00:09]} Kb7 {[%emt 0:00:01]} 71. Qd6 {[%emt 0:00:43]} Qf3+ {[%emt 0:00:29]} 72. Kg1 {[%emt 0:00:31]} Qg4+ {[%emt 0:00:18]} 73. Qg3 {[%emt 0:00:36]} Qf5 {[%emt 0:00:27]} 74. Bc4 {[%emt 0:00:27]} Ng4 {[%emt 0:00:11]} 75. Qf4 {[%emt 0:00:58]} Qxf4 {[%emt 0:01:02]} 76. exf4 {[%emt 0:00:01]} Kc6 {[%emt 0:00:24]} 77. Kg2 {[%emt 0:00:05]} Kc5 {[%emt 0:00:20]} 78. Kg3 {[%emt 0:00:17]} Nf6 {[%emt 0:00:09]} 79. f5 {[%emt 0:00:15]} Kd4 {[%emt 0:00:00]} 80. Kf4 {[%emt 0:00:31]} Nd7 {[%emt 0:00:01]} 81. Bb5 {[%emt 0:00:55]} Ne5 {[%emt 0:00:14]} 82. f6 {[%emt 0:00:38]} 1-0

[Event "7th Cesme Open-A 2019"]
[Site "Cesme"]
[Date "2019.06.28"]
[Round "7"]
[White "Kamer, Kayra"]
[Black "Yilmaz, Goktan"]
[Result "1/2-1/2"]
[ECO "B90"]
[WhiteElo "2353"]
[BlackElo "2155"]
[Annotator "NA"]
[PlyCount "115"]
[EventDate "2019.06.24"]
[EventType "swiss"]
[EventCountry "TUR"]
[SourceTitle "playchess.com"]
[Source "ChessBase"]
[SourceQuality "1"]
[TimeControl "5400+30"]

1. e4 {[%emt 0:04:30]} c5 {[%emt 0:00:30]} 2. Nf3 {[%emt 0:01:30]} d6 {[%emt 0:00:00]} 3. d4 {[%emt 0:00:30]} cxd4 {[%emt 0:00:00]} 4. Nxd4 {[%emt 0:00:00]} Nf6 {[%emt 0:00:30]} 5. Nc3 {[%emt 0:00:00]} a6 {[%emt 0:00:00]} 6. f3 {[%emt 0:00:30]} e6 {[%emt 0:00:00]} 7. g4 {[%emt 0:00:00]} b5 {[%emt 0:01:30]} 8. g5 {[%emt 0:00:00]} Nfd7 {[%emt 0:00:00]} 9. h4 {[%emt 0:00:30]} Bb7 {[%emt 0:05:00]} 10. Be3 {[%emt 0:01:30]} Nb6 {[%emt 0:02:30]} 11. Qe2 {[%emt 0:11:30]} N8d7 {[%emt 0:05:30]} 12. h5 {[%emt 0:00:30]} b4 $11 {[%emt 0:10:30]} 13. Nb1 {[%emt 0:00:30]} d5 {[%emt 0:02:30]} 14. Qg2 {[%emt 0:00:30]} Bc5 {[%emt 0:15:30]} 15. g6 {[%emt 0:00:30]} hxg6 {[%emt 0:10:30]} 16. hxg6 {[%emt 0:05:30]} Rxh1 {[%emt 0:00:30]} 17. gxf7+ {[%emt 0:01:30]} Kxf7 {[%emt 0:01:30]} 18. Qxh1 {[%emt 0:00:00]} Qf6 {[%emt 0:01:30]} 19. Qh5+ {[%emt 0:01:00]} Kg8 {[%emt 0:00:30]} 20. Bh3 {[%emt 0:01:30]} Nf8 {[%emt 0:06:30]} 21. e5 {[%emt 0:01:30]} Qf7 {[%emt 0:00:30]} 22. Qxf7+ {[%emt 0:02:30]} Kxf7 {[%emt 0:00:30]} 23. Nd2 {[%emt 0:00:00]} Nc4 {[%emt 0:05:30]} 24. Nxc4 {[%emt 0:00:00]} dxc4 {[%emt 0:00:30]} 25. Nf5 {[%emt 0:00:30]} Bxe3 {[%emt 0:01:30]} 26. Nxe3 {[%emt 0:00:30]} Bxf3 {[%emt 0:02:30]} 27. Nxc4 {[%emt 0:00:00]} Ng6 {[%emt 0:01:30]} 28. a3 {[%emt 0:02:00]} Bd5 {[%emt 0:05:30]} 29. Nb6 {[%emt 0:02:30]} Rh8 {[%emt 0:01:30]} 30. Bf1 {[%emt 0:00:00]} Rb8 {[%emt 0:02:11]} 31. Nxd5 {[%emt 0:01:00]} exd5 {[%emt 0:00:02]} 32. axb4 {[%emt 0:01:30]} Rxb4 {[%emt 0:00:03]} 33. b3 {[%emt 0:04:30]} Rb6 {[%emt 0:00:43]} 34. Bxa6 {[%emt 0:02:30]} Nxe5 {[%emt 0:00:38]} 35. Kd2 {[%emt 0:00:30]} g5 {[%emt 0:02:36]} 36. Ke3 {[%emt 0:01:30]} Ke7 {[%emt 0:00:22]} 37. Be2 {[%emt 0:04:30]} Kd6 {[%emt 0:01:43]} 38. Rg1 {[%emt 0:01:30]} g4 {[%emt 0:02:18]} 39. Bxg4 {[%emt 0:00:30]} Kc5 {[%emt 0:00:30]} 40. Be2 {[%emt 0:00:30]} Rh6 {[%emt 0:00:27]} 41. Rg8 {[%emt 0:02:30]} Rh3+ {[%emt 0:01:03]} 42. Kd2 {[%emt 0:00:30]} Kd4 {[%emt 0:01:40]} 43. Rd8 {[%emt 0:00:30]} Rh2 {[%emt 0:01:35]} 44. c4 {[%emt 0:01:30]} Nf3+ {[%emt 0:00:30]} 45. Kd1 {[%emt 0:00:30]} Rh1+ {[%emt 0:00:34]} 46. Kc2 {[%emt 0:02:30]} Rh2 {[%emt 0:00:00]} 47. Rxd5+ {[%emt 0:02:30]} Ke3 {[%emt 0:00:29]} 48. Kc3 {[%emt 0:00:30]} Rxe2 {[%emt 0:01:28]} 49. b4 {[%emt 0:00:30]} Ke4 {[%emt 0:02:10]} 50. b5 {[%emt 0:00:30]} Re1 {[%emt 0:01:07]} 51. Kb4 {[%emt 0:02:30]} Ne5 {[%emt 0:00:17]} 52. Kc5 {[%emt 0:00:30]} Rb1 {[%emt 0:02:39]} 53. Rd4+ {[%emt 0:01:30]} Kf5 {[%emt 0:00:34]} 54. Rh4 {[%emt 0:05:30]} Ke6 {[%emt 0:01:07]} 55. Rh6+ {[%emt 0:00:30]} Kd7 {[%emt 0:00:44]} 56. Rh7+ {[%emt 0:02:30]} Ke6 {[%emt 0:01:10]} 57. Rc7 {[%emt 0:05:30]} Rc1 {[%emt 0:00:44]} 58. Kd4 {[%emt 0:00:30]} 1/2-1/2

[Event "7th Cesme Open-A 2019"]
[Site "Cesme"]
[Date "2019.06.28"]
[Round "7"]
[White "Chighladze, Iveri"]
[Black "Ozenir, Ekin Baris"]
[Result "1-0"]
[ECO "E32"]
[WhiteElo "2317"]
[BlackElo "2250"]
[Annotator "NA"]
[PlyCount "115"]
[EventDate "2019.06.24"]
[EventType "swiss"]
[EventCountry "TUR"]
[SourceTitle "playchess.com"]
[Source "ChessBase"]
[SourceQuality "1"]
[TimeControl "5400+30"]

1. d4 {[%emt 0:00:30]} Nf6 {[%emt 0:00:30]} 2. c4 {[%emt 0:00:30]} e6 {[%emt 0:00:00]} 3. Nc3 {[%emt 0:00:30]} Bb4 {[%emt 0:00:00]} 4. Qc2 {[%emt 0:00:00]} O-O {[%emt 0:00:30]} 5. e4 {[%emt 0:00:00]} d5 {[%emt 0:01:30]} 6. e5 {[%emt 0:00:00]} Ne4 {[%emt 0:00:00]} 7. Bd3 {[%emt 0:00:00]} c5 {[%emt 0:02:00]} 8. Nf3 {[%emt 0:00:30]} cxd4 {[%emt 0:02:30]} 9. Nxd4 {[%emt 0:00:30]} Nd7 {[%emt 0:01:30]} 10. Bxe4 {[%emt 0:00:30]} dxe4 {[%emt 0:00:30]} 11. Qxe4 {[%emt 0:01:30]} Qa5 {[%emt 0:02:30]} 12. O-O {[%emt 0:00:30]} Qxe5 {[%emt 0:07:30]} 13. Qh4 {[%emt 0:00:30]} Qc5 $11 {[%emt 0:08:30]} 14. Nde2 {[%emt 0:04:30]} Qe7 {[%emt 0:11:30]} 15. Bg5 {[%emt 0:12:30]} f6 {[%emt 0:07:30]} 16. Be3 {[%emt 0:00:30]} b6 {[%emt 0:04:30]} 17. a3 {[%emt 0:14:30]} Bc5 {[%emt 0:03:30]} 18. Bxc5 {[%emt 0:07:30]} bxc5 {[%emt 0:06:30]} 19. Rfe1 {[%emt 0:06:30]} Ne5 {[%emt 0:06:30]} 20. b3 {[%emt 0:09:30]} Rb8 {[%emt 0:08:30]} 21. Rab1 {[%emt 0:11:30]} Nc6 {[%emt 0:05:15]} 22. Qg3 {[%emt 0:11:38]} Rd8 {[%emt 0:08:50]} 23. Nf4 {[%emt 0:03:53]} Rb7 {[%emt 0:02:21]} 24. h3 {[%emt 0:02:34]} Nd4 {[%emt 0:01:47]} 25. Ne4 {[%emt 0:04:27]} a5 {[%emt 0:05:10]} 26. Kh1 {[%emt 0:01:06]} Rf8 {[%emt 0:02:16]} 27. Nd2 {[%emt 0:03:07]} Qd6 {[%emt 0:01:16]} 28. Nd3 {[%emt 0:01:15]} Qc6 {[%emt 0:00:30]} 29. Ne4 {[%emt 0:02:36]} Nc2 {[%emt 0:00:30]} 30. Re2 {[%emt 0:00:57]} Nd4 {[%emt 0:00:30]} 31. Ree1 {[%emt 0:00:00]} Nc2 {[%emt 0:00:07]} 32. Rec1 {[%emt 0:00:52]} Qxe4 {[%emt 0:00:19]} 33. Rxc2 {[%emt 0:00:44]} Rd8 {[%emt 0:00:40]} 34. Rc3 {[%emt 0:00:24]} a4 {[%emt 0:01:24]} 35. b4 {[%emt 0:00:30]} cxb4 {[%emt 0:00:30]} 36. axb4 {[%emt 0:00:30]} Ra7 {[%emt 0:00:30]} 37. Ra1 {[%emt 0:00:04]} Qd4 {[%emt 0:00:02]} 38. Nc5 {[%emt 0:00:30]} a3 {[%emt 0:00:33]} 39. Rcxa3 {[%emt 0:00:09]} Rxa3 {[%emt 0:00:58]} 40. Rxa3 {[%emt 0:00:30]} Qxc4 {[%emt 0:00:30]} 41. Ra7 {[%emt 0:00:30]} g5 {[%emt 0:00:30]} 42. Qc7 {[%emt 0:00:30]} Qc1+ {[%emt 0:00:30]} 43. Kh2 {[%emt 0:00:30]} Qf4+ {[%emt 0:00:30]} 44. Qxf4 {[%emt 0:00:30]} gxf4 {[%emt 0:00:30]} 45. b5 {[%emt 0:00:00]} e5 {[%emt 0:00:00]} 46. b6 {[%emt 0:00:42]} Rd6 {[%emt 0:00:06]} 47. Na4 {[%emt 0:00:42]} Rc6 {[%emt 0:00:53]} 48. Rc7 {[%emt 0:01:22]} Rxc7 {[%emt 0:00:24]} 49. bxc7 {[%emt 0:00:02]} Kg7 {[%emt 0:00:55]} 50. Nb6 {[%emt 0:00:05]} Be6 {[%emt 0:00:20]} 51. c8=Q {[%emt 0:00:30]} Bxc8 {[%emt 0:00:30]} 52. Nxc8 {[%emt 0:00:00]} Kg6 {[%emt 0:00:00]} 53. Ne7+ {[%emt 0:00:41]} Kg5 {[%emt 0:00:00]} 54. Kg1 {[%emt 0:00:13]} h5 {[%emt 0:00:35]} 55. Kf1 {[%emt 0:00:07]} e4 {[%emt 0:00:07]} 56. Ke2 {[%emt 0:00:41]} Kh4 {[%emt 0:00:28]} 57. Nd5 {[%emt 0:00:29]} Kg5 {[%emt 0:00:27]} 58. f3 {[%emt 0:01:01]} 1-0

[Event "7th Cesme Open-A 2019"]
[Site "Cesme"]
[Date "2019.06.28"]
[Round "7"]
[White "Eminov, Orkhan"]
[Black "Lomsadze, Davit"]
[Result "1/2-1/2"]
[ECO "C64"]
[WhiteElo "2314"]
[BlackElo "2292"]
[Annotator "NA"]
[PlyCount "33"]
[EventDate "2019.06.24"]
[EventType "swiss"]
[EventCountry "TUR"]
[SourceTitle "playchess.com"]
[Source "ChessBase"]
[SourceQuality "1"]
[TimeControl "5400+30"]

1. e4 {[%emt 0:03:30]} e5 {[%emt 0:00:30]} 2. Nf3 {[%emt 0:04:30]} Nc6 {[%emt 0:01:30]} 3. Bb5 {[%emt 0:02:30]} Bc5 {[%emt 0:02:30]} 4. O-O {[%emt 0:00:30]} Nd4 {[%emt 0:00:30]} 5. Nxd4 {[%emt 0:08:30]} Bxd4 {[%emt 0:00:00]} 6. c3 $11 {[%emt 0:04:30]} Bb6 {[%emt 0:06:00]} 7. d4 {[%emt 0:02:30]} c6 {[%emt 0:00:30]} 8. Bc4 {[%emt 0:22:30]} d6 {[%emt 0:00:00]} 9. a4 {[%emt 0:09:30]} Nf6 {[%emt 0:03:00]} 10. Bg5 {[%emt 0:06:30]} h6 {[%emt 0:03:30]} 11. Bxf6 {[%emt 0:08:30]} Qxf6 {[%emt 0:00:30]} 12. a5 {[%emt 0:00:00]} Bc7 {[%emt 0:00:30]} 13. d5 {[%emt 0:00:00]} O-O {[%emt 0:00:30]} 14. Nd2 {[%emt 0:01:30]} Bd7 {[%emt 0:03:30]} 15. Qe2 {[%emt 0:01:30]} Rab8 {[%emt 0:02:30]} 16. b4 {[%emt 0:01:47]} Kh8 {[%emt 0:01:30]} 17. Rfd1 {[%emt 0:05:51]} 1/2-1/2

[Event "7th Cesme Open-A 2019"]
[Site "Cesme"]
[Date "2019.06.28"]
[Round "7"]
[White "Guseynov, Alihan"]
[Black "Tuncer, Tuna"]
[Result "1/2-1/2"]
[ECO "A38"]
[WhiteElo "2274"]
[BlackElo "2365"]
[Annotator "NA"]
[PlyCount "31"]
[EventDate "2019.06.24"]
[EventType "swiss"]
[EventCountry "TUR"]
[SourceTitle "playchess.com"]
[Source "ChessBase"]
[SourceQuality "1"]
[TimeControl "5400+30"]

1. c4 {[%emt 0:00:30]} c5 {[%emt 0:03:30]} 2. Nf3 {[%emt 0:00:30]} Nc6 {[%emt 0:00:00]} 3. Nc3 {[%emt 0:01:30]} Nf6 {[%emt 0:06:00]} 4. g3 {[%emt 0:01:30]} d5 {[%emt 0:00:30]} 5. cxd5 {[%emt 0:00:30]} Nxd5 {[%emt 0:00:00]} 6. Bg2 {[%emt 0:00:30]} g6 {[%emt 0:01:00]} 7. O-O {[%emt 0:08:30]} Bg7 {[%emt 0:00:30]} 8. d3 {[%emt 0:00:30]} O-O $11 {[%emt 0:07:30]} 9. Bd2 {[%emt 0:16:30]} b6 {[%emt 0:07:30]} 10. Nxd5 {[%emt 0:16:30]} Qxd5 {[%emt 0:00:30]} 11. Ne5 {[%emt 0:10:30]} Qxe5 {[%emt 0:00:30]} 12. Bxc6 {[%emt 0:00:30]} Bh3 {[%emt 0:00:00]} 13. Bc3 {[%emt 0:00:30]} Qd6 {[%emt 0:01:00]} 14. Bxa8 {[%emt 0:00:30]} Bxf1 {[%emt 0:00:30]} 15. Qxf1 {[%emt 0:02:30]} Rxa8 {[%emt 0:00:30]} 16. Qg2 {[%emt 0:00:00]} 1/2-1/2